bitfinex/quotes_ETHUSD_20251120
["timestamp","ask_amount","ask_price","bid_price","bid_amount"]
[1763642831486,0.002,3023.5,3023.4,10.11029744]
[1763642831686,0.002,3023.5,3023.4,10.08747406]
[1763642831847,0.002,3023.5,3023.4,10.19947406]
[1763642832245,0.0012,3023.5,3023.4,10.19947406]
[1763642832703,0.0012,3023.5,3023.4,10.08747406]
[1763642832911,0.0012,3023.5,3023.4,10.19947406]
[1763642834808,0.0012,3023.5,3023.4,10.60497806]
[1763642837319,0.002,3023.9,3023.5,1.31249664]
[1763642837523,0.002,3023.9,3023.8,7.3409536]
[1763642837693,0.002,3023.9,3023.8,7.4529536]
[1763642839396,0.002,3023.9,3023.8,10.76005063]
[1763642839923,0.002,3023.9,3023.8,11.16555463]
[1763642840358,0.002,3023.9,3023.8,11.05355463]
[1763642840523,0.002,3023.9,3023.8,13.33935899]
[1763642844155,0.002,3023.9,3023.8,13.29787899]
[1763642845399,0.002,3023.9,3023.8,16.98887899]
[1763642848846,0.4879,3023.9,3023.8,16.87687899]
[1763642848998,1.1729,3023.9,3023.8,18.77119732]
[1763642849510,1.1729,3023.9,3023.8,11.86121236]
[1763642849854,1.1729,3023.9,3023.5,0.001]
[1763642850005,0.4859,3023.6,3023.5,0.001]
[1763642850343,0.4859,3023.6,3023.1,0.001]
[1763642850543,0.4859,3023.2,3023.1,3.30886276]
[1763642850841,0.4859,3023.2,3023.1,4.21585542]
[1763642851041,0.9746,3023.2,3023.1,4.21585542]
[1763642851226,0.9746,3023.2,3023.1,3.30886278]
[1763642851927,0.9746,3023.2,3023.1,0.90799264]
[1763642852126,0.9746,3023.2,3023.1,0.001]
[1763642852555,0.4859,3023.1,3022.8,0.001]
[1763642852703,0.6822,3022.9,3022.1,0.112]
[1763642852903,0.4859,3022.5,3022.4,3.3096289]
[1763642853442,0.4859,3022.5,3022.4,4.21662154]
[1763642853443,0.9746,3022.5,3022.4,4.21662154]
[1763642855844,0.4859,3022.5,3022.4,4.21662154]
[1763642856338,0.4851,3022.5,3022.4,4.21662154]
[1763642856504,0.9738,3022.5,3022.4,4.21662154]
[1763642857231,0.4887,3022.8,3022.5,0.90699264]
[1763642857429,0.4887,3022.8,3022.6,0.02284526]
[1763642857600,0.1963,3022.9,3022.6,3.691]
[1763642857796,0.4887,3023.6,3022.9,0.405504]
[1763642858000,0.4887,3023.6,3023.2,0.90699264]
[1763642858198,0.4859,3023.0,3022.8,7.523338]
[1763642858509,0.4887,3023.6,3023.0,0.405504]
[1763642858706,0.4887,3023.6,3023.3,0.90699264]
[1763642859127,0.4696,3023.4,3023.3,1.01899264]
[1763642859566,0.9369,3023.4,3023.3,1.01899264]
[1763642860128,0.9369,3023.4,3023.3,4.3266366]
[1763642860564,0.9369,3023.4,3023.3,4.2146366]
[1763642861257,0.4696,3023.4,3023.3,4.2146366]
[1763642861458,0.9369,3023.4,3023.3,4.2146366]
[1763642861662,0.9369,3023.4,3023.3,4.3266366]
[1763642862459,0.9369,3023.4,3023.3,3.30764396]
[1763642864460,0.9369,3023.4,3023.1,0.90699264]
[1763642864666,0.4673,3023.3,3023.1,1.01899264]
[1763642864836,0.4696,3023.2,3023.1,1.01899264]
[1763642865228,0.9369,3023.2,3023.1,1.78248367]
[1763642865429,0.9369,3023.2,3023.1,1.67048367]
[1763642865631,0.9369,3023.2,3023.1,1.01899264]
[1763642866132,0.4696,3023.2,3023.1,1.01899264]
[1763642866564,0.4673,3023.5,3023.1,10.94258098]
[1763642866768,0.002,3023.4,3023.1,10.94258098]
[1763642867366,0.4693,3023.4,3023.1,10.94258098]
[1763642867533,0.4693,3023.4,3023.1,12.03683908]
[1763642867930,0.4693,3023.4,3023.1,8.7289763]
[1763642868565,0.4693,3023.4,3023.3,6.43396096]
[1763642868566,0.002,3023.4,3023.3,6.43396096]
[1763642868766,0.002,3023.4,3023.3,7.3409536]
[1763642868969,0.002,3023.4,3023.3,11.0319536]
[1763642869174,0.002,3023.4,3023.3,9.63185133]
[1763642870476,0.002,3023.8,3023.4,11.23510032]
[1763642870676,0.002,3023.8,3023.6,0.405504]
[1763642871373,0.002,3023.8,3023.6,0.42832092]
[1763642871578,0.002,3023.8,3023.6,0.405504]
[1763642871776,0.002,3023.8,3023.6,0.42832092]
[1763642871978,0.002,3023.9,3023.8,7.3409536]
[1763642872183,0.002,3023.9,3023.8,8.11559936]
[1763642872474,0.002,3023.9,3023.8,11.42269639]
[1763642872674,0.002,3023.9,3023.8,11.53469639]
[1763642874458,0.002,3023.9,3023.8,11.42269639]
[1763642874655,0.002,3023.9,3023.8,11.53469639]
[1763642875655,0.002,3024.1,3024.0,0.405504]
[1763642875858,0.002,3024.1,3024.0,2.08474853]
[1763642876480,0.002,3024.7,3024.0,2.08474853]
[1763642876682,0.002,3024.7,3024.1,7.92603454]
[1763642876985,0.002,3024.7,3024.2,11.26043499]
[1763642877179,0.002,3024.7,3024.3,0.90699264]
[1763642877487,0.002,3024.7,3024.6,7.05193099]
[1763642877816,0.002,3024.7,3024.6,7.16393099]
[1763642877980,0.4716,3024.7,3024.6,7.16393099]
[1763642878183,0.4716,3024.7,3024.6,7.05193099]
[1763642878371,0.4716,3024.7,3024.6,7.16393099]
[1763642878570,0.4716,3024.7,3024.6,8.41164876]
[1763642878772,0.4716,3024.7,3024.6,11.71787107]
[1763642879575,0.4716,3024.7,3024.6,11.60587107]
[1763642879766,0.9389,3024.7,3024.6,4.21321495]
[1763642880172,0.9381,3024.7,3024.6,4.21321495]
[1763642880368,0.4708,3024.7,3024.6,4.21321495]
[1763642880993,0.9381,3024.7,3024.6,7.90421495]
[1763642881806,0.4708,3024.7,3024.6,7.90421495]
[1763642881992,0.9381,3024.7,3024.6,7.90421495]
[1763642882203,0.4708,3024.7,3024.6,7.90421495]
[1763642882421,0.0012,3024.7,3024.6,9.65096277]
[1763642882720,0.181,3025.0,3024.7,1.31249664]
[1763642882883,0.181,3025.0,3024.9,7.05193099]
[1763642883206,1.1179,3025.0,3024.9,7.16393099]
[1763642883608,1.1179,3025.0,3024.9,7.05193099]
[1763642883780,1.1179,3025.0,3024.9,0.90699264]
[1763642884796,1.1179,3025.0,3024.9,4.21288704]
[1763642885215,0.6506,3025.0,3024.9,11.12091446]
[1763642885393,0.002,3025.1,3024.9,14.42680886]
[1763642885927,0.6515,3025.7,3025.0,0.85001698]
[1763642886215,0.6515,3025.7,3025.4,1.31249664]
[1763642886421,0.1842,3025.7,3025.5,0.112]
[1763642886897,0.6636,3026.0,3025.6,9.91538868]
[1763642887092,0.6636,3026.0,3025.8,0.90699264]
[1763642887300,0.1963,3026.0,3025.9,0.112]
[1763642887824,0.6659,3026.0,3025.9,0.112]
[1763642888181,0.6659,3026.0,3025.8,0.90699264]
[1763642888182,1.1298,3026.0,3025.8,0.90699264]
[1763642888384,0.4516,3025.9,3025.8,0.90699264]
[1763642888584,0.1963,3026.0,3025.8,1.01899264]
[1763642888785,0.1842,3026.1,3025.8,2.84032346]
[1763642889021,0.1842,3026.1,3025.7,6.14493835]
[1763642889022,0.6481,3026.1,3026.0,0.90699264]
[1763642889427,1.0997,3026.1,3026.0,0.90699264]
[1763642889906,1.0997,3026.1,3025.8,3.30488122]
[1763642890110,0.4639,3026.0,3025.8,7.51678495]
[1763642890311,0.4639,3026.0,3025.9,0.90699264]
[1763642890714,0.9155,3026.0,3025.9,0.90699264]
[1763642891340,0.9155,3026.0,3025.9,4.21179451]
[1763642891635,0.9155,3026.0,3025.9,0.90699264]
[1763642891837,0.9155,3026.0,3024.8,3.3059561]
[1763642892035,0.4516,3025.4,3025.1,6.61135168]
[1763642892202,0.4639,3025.9,3025.1,6.61135168]
[1763642892407,0.4516,3025.2,3025.1,3.30567584]
[1763642892633,0.4516,3025.2,3025.1,4.21266848]
[1763642892802,0.9155,3025.2,3025.1,4.21266848]
[1763642893244,0.9155,3025.2,3024.8,3.41791129]
[1763642893409,0.6414,3024.9,3024.8,4.32490393]
[1763642893926,1.1053,3024.9,3024.8,3.30591129]
[1763642894140,1.1053,3024.9,3024.8,3.41791129]
[1763642894306,0.1898,3025.2,3024.9,0.90699264]
[1763642894502,0.1842,3026.1,3025.0,0.405504]
[1763642894730,0.6481,3026.1,3025.5,1.31249664]
[1763642894932,0.6481,3026.1,3025.8,6.14493835]
[1763642895303,0.6481,3026.1,3025.9,6.60960374]
[1763642895509,0.1842,3026.1,3025.9,6.60960374]
[1763642896207,0.4639,3026.4,3026.0,1.01899264]
[1763642896606,0.4639,3026.4,3026.2,6.14493835]
[1763642897129,0.4516,3026.3,3026.2,6.14493835]
[1763642897534,0.4639,3026.8,3026.3,0.90699264]
[1763642897832,0.4639,3026.8,3026.6,6.14493835]
[1763642898006,0.1842,3027.0,3026.6,6.14493835]
[1763642898207,0.6481,3027.0,3026.6,6.14493835]
[1763642898612,0.4639,3026.9,3026.6,6.14493835]
[1763642898942,0.4516,3026.7,3026.6,6.14493835]
[1763642899446,0.9155,3026.7,3026.6,9.56097588]
[1763642900858,0.9155,3026.7,3026.6,3.30403753]
[1763642901223,0.4516,3026.7,3026.6,3.30403753]
[1763642901715,0.4516,3026.7,3026.5,0.90699264]
[1763642901910,0.6481,3027.0,3026.6,4.59799264]
[1763642902137,0.4639,3026.9,3026.6,3.691]
[1763642903251,0.4536,3026.7,3026.6,4.59799264]
[1763642903622,0.9175,3026.7,3026.6,7.90203017]
[1763642904350,0.9167,3026.7,3026.6,7.90203017]
[1763642907325,0.4528,3026.7,3026.6,7.90203017]
[1763642907637,0.9167,3026.7,3026.6,7.90203017]
[1763642911217,0.9167,3026.7,3026.6,4.59799264]
[1763642911657,0.9167,3026.7,3026.6,7.90203017]
[1763642912034,0.4528,3026.7,3026.6,7.90203017]
[1763642912239,0.0012,3026.7,3026.6,7.90203017]
[1763642913162,0.4931,3026.7,3026.6,7.90203017]
[1763642913367,0.0012,3026.7,3026.6,7.90203017]
[1763642915031,0.4931,3026.7,3026.6,7.90203017]
[1763642915232,0.9471,3026.7,3026.6,8.01303017]
[1763642915532,0.9471,3026.7,3026.6,7.90203017]
[1763642917077,0.9471,3026.7,3026.6,4.59799264]
[1763642917960,0.9471,3026.7,3026.6,7.90203017]
[1763642919047,0.4931,3026.7,3026.6,7.90203017]
[1763642919270,0.9286,3026.7,3026.6,5.33164708]
[1763642919554,0.9286,3026.7,3026.6,4.21103017]
[1763642922466,0.4625,3026.7,3026.6,4.21103017]
[1763642922658,0.0012,3026.7,3026.6,4.21103017]
[1763642922987,0.4625,3026.7,3026.6,4.21103017]
[1763642923693,0.0012,3026.7,3026.6,4.21103017]
[1763642924367,0.4625,3026.7,3026.6,4.21103017]
[1763642924567,0.4625,3026.7,3026.6,4.32203017]
[1763642924766,0.4625,3026.7,3026.6,4.21103017]
[1763642924968,0.9286,3026.7,3026.6,4.21103017]
[1763642926503,0.0012,3026.7,3026.6,4.97374733]
[1763642928212,0.0004,3026.7,3026.6,4.97374733]
[1763642928411,0.0004,3026.7,3026.6,5.40198728]
[1763642928692,0.0004,3026.7,3026.6,7.17445361]
[1763642928895,0.0004,3026.7,3026.6,7.15868022]
[1763642929262,0.0004,3026.7,3026.6,7.15814348]
[1763642930194,0.0004,3026.7,3026.6,5.37925133]
[1763642930367,0.0004,3026.7,3026.6,7.26907182]
[1763642930990,0.0004,3026.7,3026.6,5.49025133]
[1763642931175,0.0004,3026.7,3026.6,7.26907182]
[1763642931386,0.0004,3026.7,3026.6,5.49025133]
[1763642931586,0.0004,3026.7,3026.6,9.18125133]
[1763642932580,0.0004,3026.7,3026.6,9.07025133]
[1763642932780,0.0004,3026.7,3026.6,9.18125133]
[1763642934781,0.0004,3026.7,3026.6,9.07025133]
[1763642934983,0.0004,3026.7,3026.6,9.18125133]
[1763642935377,0.4617,3026.7,3026.6,9.18125133]
[1763642935619,0.9278,3026.7,3026.6,9.07025133]
[1763642935830,0.9278,3026.7,3026.6,9.18125133]
[1763642935998,0.0004,3026.7,3026.6,9.18125133]
[1763642936521,0.002,3027.1,3026.6,9.18125133]
[1763642936522,0.002,3027.1,3026.8,0.405504]
[1763642936722,0.002,3027.1,3027.0,7.45743499]
[1763642936924,0.002,3027.1,3027.0,5.92696386]
[1763642937076,0.9294,3027.1,3027.0,6.03796386]
[1763642937281,0.9294,3027.1,3027.0,9.34156478]
[1763642937683,0.002,3027.1,3027.0,9.34156478]
[1763642938540,0.002,3027.1,3027.0,9.23056478]
[1763642938834,0.002,3027.1,3027.0,9.34156478]
[1763642939712,0.002,3027.1,3027.0,11.11880201]
[1763642941358,0.002,3027.1,3027.0,9.34156478]
[1763642941560,0.002,3027.1,3027.0,11.11880201]
[1763642942037,0.002,3027.4,3027.1,1.31249664]
[1763642942235,0.002,3027.4,3027.3,0.405504]
[1763642943351,0.002,3027.4,3027.3,6.38833667]
[1763642943836,0.002,3027.4,3027.3,6.49933667]
[1763642945035,0.002,3027.4,3027.3,4.72677018]
[1763642945206,0.002,3027.4,3027.3,5.91544664]
[1763642946317,0.002,3027.4,3027.3,9.60644664]
[1763642946928,0.6466,3028.3,3027.4,0.90699264]
[1763642947127,0.6466,3028.3,3027.9,1.31249664]
[1763642947328,0.6466,3028.3,3028.2,3.30229179]
[1763642947538,0.6466,3028.6,3028.2,14.50486801]
[1763642947723,0.6466,3028.6,3028.3,4.59799264]
[1763642947928,0.4661,3028.5,3028.3,4.59799264]
[1763642948237,0.4613,3028.4,3028.3,4.59799264]
[1763642949207,0.9313,3028.4,3028.3,4.59799264]
[1763642950342,0.9313,3028.4,3028.3,7.90017538]
[1763642950537,0.9313,3028.4,3028.3,8.39092873]
[1763642950840,0.1805,3028.6,3028.3,11.69311147]
[1763642951507,0.47,3028.8,3028.5,0.90699264]
[1763642952137,0.4692,3028.8,3028.5,0.90699264]
[1763642952338,0.4598,3028.6,3028.5,4.6144613]
[1763642952511,0.4598,3028.6,3028.5,4.2089573]
[1763642954334,0.9298,3028.6,3028.5,4.2089573]
[1763642956215,0.9318,3028.6,3028.5,4.2089573]
[1763642956541,0.9318,3028.6,3028.4,6.99305994]
[1763642956755,0.9318,3028.6,3028.1,0.90699264]
[1763642956756,0.9298,3028.5,3027.6,3.691]
[1763642956960,0.002,3028.6,3027.7,10.40767426]
[1763642956961,0.9298,3028.4,3027.7,10.40767426]
[1763642957254,0.9298,3028.4,3027.8,0.90699264]
[1763642957455,0.4598,3027.8,3027.7,7.10483713]
[1763642957662,0.4598,3027.8,3027.7,7.90082977]
[1763642957861,0.4598,3027.8,3027.7,8.01182977]
[1763642958060,0.4598,3027.8,3027.7,7.10483713]
[1763642958261,0.9298,3027.8,3027.7,7.90082977]
[1763642959139,0.1954,3028.1,3027.8,0.90699264]
[1763642959631,0.4598,3027.9,3027.8,0.90699264]
[1763642960042,0.9298,3027.9,3027.8,0.90699264]
[1763642960859,0.1954,3028.1,3027.8,8.9271846]
[1763642961042,0.4598,3027.9,3027.8,13.0236886]
[1763642961358,0.4598,3027.9,3027.8,14.66744117]
[1763642961857,0.1954,3028.1,3027.8,18.08116922]
[1763642962261,0.6654,3028.1,3027.8,18.08116922]
[1763642962556,0.002,3028.6,3027.8,21.38389727]
[1763642962759,0.47,3028.5,3028.0,7.51201244]
[1763642962936,0.47,3028.5,3028.1,4.71746391]
[1763642963462,0.6552,3028.2,3028.1,5.62445655]
[1763642963885,1.1252,3028.2,3028.1,0.90699264]
[1763642964863,1.1252,3028.2,3028.1,4.20939348]
[1763642966734,1.1252,3028.2,3028.1,8.92685739]
[1763642967481,0.472,3028.6,3028.1,16.75459572]
[1763642967649,0.472,3028.6,3028.5,4.71746391]
[1763642968171,0.9318,3028.6,3028.5,4.71746391]
[1763642968865,0.9318,3028.6,3028.5,8.01942857]
[1763642971572,0.9318,3028.6,3028.2,8.01974101]
[1763642971883,0.4738,3028.3,3028.2,9.03769017]
[1763642972294,0.9665,3028.3,3028.2,9.03769017]
[1763642972787,0.9665,3028.3,3028.2,10.44326208]
[1763642972978,0.4947,3028.6,3028.2,13.74555387]
[1763642973291,0.4947,3028.6,3028.5,4.71746391]
[1763642973453,0.4947,3028.6,3028.5,8.01942857]
[1763642973659,0.9685,3028.6,3028.5,8.01942857]
[1763642974589,0.9685,3028.6,3028.4,3.30206525]
[1763642974759,0.9665,3028.5,3028.4,3.30206525]
[1763642975560,0.9665,3028.5,3028.3,6.60435687]
[1763642975758,0.9665,3028.4,3028.3,3.30217413]
[1763642976274,0.9657,3028.4,3028.3,3.30217413]
[1763642976473,0.473,3028.4,3028.3,4.58543549]
[1763642976670,0.4947,3028.6,3028.3,11.57861823]
[1763642976995,0.4947,3028.6,3028.5,4.71746391]
[1763642977161,0.002,3028.6,3028.5,4.71746391]
[1763642977657,0.002,3028.6,3028.5,8.01942857]
[1763642977861,0.002,3028.6,3028.5,9.6490041]
[1763642978083,0.9685,3028.6,3028.5,8.01942857]
[1763642978678,0.002,3028.6,3028.5,9.33192521]
[1763642978880,0.002,3028.6,3028.5,9.44292521]
[1763642979055,0.002,3028.6,3028.5,9.63272521]
[1763642979774,0.4597,3028.6,3028.5,9.63272521]
[1763642979974,0.4597,3028.6,3028.5,11.23178705]
[1763642980585,0.002,3028.6,3028.5,11.23178705]
[1763642980785,0.002,3028.6,3028.5,11.12078705]
[1763642980985,0.002,3028.6,3028.5,11.23178705]
[1763642982797,0.4597,3028.6,3028.5,11.12078705]
[1763642983103,0.9114,3028.6,3028.5,11.23178705]
[1763642984200,0.9094,3028.5,3028.4,4.20898602]
[1763642985398,0.002,3028.6,3028.5,0.90699264]
[1763642985603,0.002,3028.6,3028.5,0.92967677]
[1763642985773,0.002,3028.6,3028.5,5.77539537]
[1763642985970,0.002,3028.6,3028.5,6.2035835]
[1763642986176,0.002,3028.6,3028.5,6.18089937]
[1763642986399,0.002,3028.6,3028.5,6.63259937]
[1763642989567,3.48057942,3030.3,3028.6,0.405504]
[1763642989816,0.4517,3029.6,3028.8,2.17879312]
[1763642989973,0.4517,3029.6,3029.2,0.90699264]
[1763642990404,0.4577,3029.3,3029.2,0.90699264]
[1763642990612,0.4577,3029.3,3029.2,1.35869264]
[1763642990912,0.9094,3029.3,3029.2,6.07615655]
[1763642991086,0.9094,3029.3,3029.2,7.34403433]
[1763642992012,0.9094,3029.3,3029.2,10.64523596]
[1763642993907,0.4577,3029.3,3029.2,10.64523596]
[1763642994075,0.4517,3029.5,3029.2,13.94643759]
[1763642995223,0.4517,3029.8,3029.3,0.516504]
[1763642995383,0.4517,3029.8,3029.7,4.71746391]
[1763642995784,0.9094,3029.8,3029.7,4.71746391]
[1763642995985,0.9094,3029.8,3029.7,8.01812074]
[1763642998890,0.9094,3029.8,3029.7,8.01272472]
[1763642999990,0.4577,3029.8,3029.7,8.01272472]
[1763643000187,0.4569,3029.8,3029.7,8.01272472]
[1763643000394,0.002,3029.9,3029.7,13.45376263]
[1763643000693,0.002,3029.9,3029.8,1.31249664]
[1763643001225,0.002,3029.9,3029.8,6.02456453]
[1763643001519,0.4517,3030.5,3030.2,9.42413578]
[1763643001720,0.4517,3030.5,3030.4,4.71206789]
[1763643001902,0.1906,3030.6,3030.4,4.71206789]
[1763643002103,0.4577,3030.5,3030.4,8.01196229]
[1763643002500,0.9094,3030.5,3030.4,8.01196229]
[1763643003027,0.4517,3030.5,3030.4,10.52135774]
[1763643003212,0.1906,3030.6,3030.5,0.90699264]
[1763643003411,0.4517,3030.8,3030.5,0.90699264]
[1763643003723,0.1954,3031.0,3030.8,0.90699264]
[1763643003903,0.1954,3031.0,3030.9,4.71206789]
[1763643004102,0.6531,3031.0,3030.9,8.01141791]
[1763643004300,1.1048,3031.0,3030.9,8.01141791]
[1763643004940,1.1048,3031.0,3030.9,4.71206789]
[1763643005518,0.111,3031.5,3030.9,4.71206789]
[1763643005717,0.4517,3031.4,3031.3,4.71206789]
[1763643006208,0.9094,3031.4,3031.3,8.01098254]
[1763643006404,0.9094,3031.4,3031.3,4.71206789]
[1763643006633,0.9094,3031.4,3031.3,8.01098254]
[1763643007008,0.4517,3031.9,3031.4,0.90699264]
[1763643007209,0.4517,3031.9,3031.8,4.71206789]
[1763643007700,0.9094,3031.9,3031.8,4.71206789]
[1763643008232,0.9094,3031.9,3031.8,8.01043849]
[1763643008433,0.111,3032.4,3031.8,8.01043849]
[1763643008434,0.4648,3032.4,3031.8,11.30880909]
[1763643008597,0.4648,3032.4,3032.0,4.71206789]
[1763643008797,0.4703,3032.1,3032.0,4.43998789]
[1763643009198,0.9351,3032.1,3032.0,4.43998789]
[1763643009425,0.9351,3032.1,3031.8,3.2983706]
[1763643009426,0.9351,3032.1,3031.9,4.71206789]
[1763643009660,0.4648,3032.0,3031.9,4.71206789]
[1763643009852,0.9351,3032.0,3031.9,4.71206789]
[1763643010251,0.4648,3032.7,3032.0,6.59630606]
[1763643010559,0.4648,3032.5,3032.0,6.59630606]
[1763643010728,0.4703,3032.1,3032.0,3.29815303]
[1763643011125,0.9351,3032.1,3031.7,3.2984794]
[1763643011342,0.4703,3031.9,3031.8,0.90699264]
[1763643011665,0.4648,3032.0,3031.8,0.90699264]
[1763643011964,0.6635,3031.9,3031.8,0.90699264]
[1763643012161,0.6635,3031.9,3031.3,1.314904]
[1763643012162,0.6635,3031.9,3031.6,0.90699264]
[1763643012368,0.6635,3031.9,3031.3,1.314904]
[1763643012369,0.4703,3031.4,3031.3,4.20824009]
[1763643012671,0.1932,3031.9,3031.4,0.90699264]
[1763643012961,0.5758,3032.3,3031.5,0.516504]
[1763643013163,0.5758,3032.3,3032.1,4.71206789]
[1763643013462,0.4648,3032.3,3032.1,4.71206789]
[1763643013668,0.4648,3032.5,3032.1,4.71206789]
[1763643013973,0.4703,3032.2,3031.8,0.99032289]
[1763643014266,0.6635,3031.9,3031.8,5.19568613]
[1763643014428,0.6635,3031.9,3031.8,4.20536324]
[1763643015049,0.002,3032.3,3031.9,0.90699264]
[1763643015265,0.4668,3032.3,3032.2,5.11757189]
[1763643015764,0.9371,3032.3,3032.0,0.405504]
[1763643015964,0.4668,3032.3,3032.1,4.71206789]
[1763643016273,0.9351,3032.2,3032.1,6.02456453]
[1763643016762,0.9351,3032.2,3031.9,1.31249664]
[1763643016968,0.4703,3032.0,3031.9,1.31249664]
[1763643017336,0.9351,3032.0,3031.9,1.31249664]
[1763643018487,0.9351,3032.0,3031.9,4.61075845]
[1763643019040,0.9351,3032.0,3031.9,0.405504]
[1763643019238,0.9351,3032.0,3030.1,0.64631111]
[1763643019239,4.23325982,3032.0,3031.4,4.71206789]
[1763643019437,3.29815982,3032.0,3031.9,0.99056814]
[1763643019780,7.06661964,3032.0,3031.2,4.71206789]
[1763643020091,0.4703,3031.3,3031.2,4.71206789]
[1763643020437,0.9351,3031.3,3031.2,8.01109137]
[1763643021874,0.9351,3031.3,3031.2,4.71206789]
[1763643022060,0.9351,3031.3,3031.2,8.01109137]
[1763643023044,0.9351,3031.3,3031.2,4.71206789]
[1763643023457,0.9351,3031.3,3031.0,1.31249664]
[1763643023756,0.4648,3031.2,3031.1,5.11757189]
[1763643024402,0.9343,3031.2,3031.1,4.71206789]
[1763643024692,15.5434921,3031.2,3029.9,0.99199515]
[1763643024896,0.4703,3030.0,3029.9,0.99199515]
[1763643025058,0.111,3030.1,3029.9,4.71306789]
[1763643025257,0.111,3030.1,3030.0,4.71206789]
[1763643025468,0.111,3030.1,3029.9,0.001]
[1763643025706,0.4703,3030.0,3029.9,4.71306789]
[1763643026288,0.9351,3030.0,3029.9,4.71306789]
[1763643026685,0.9351,3030.0,3029.9,0.001]
[1763643026884,0.9351,3030.0,3029.9,4.71306789]
[1763643027284,0.9351,3030.0,3029.9,0.001]
[1763643027495,4.23543003,3030.0,3029.9,0.001]
[1763643027961,0.9351,3030.0,3029.9,0.001]
[1763643028360,4.23543003,3030.0,3029.9,0.001]
[1763643028600,4.23543003,3030.0,3029.9,4.71306789]
[1763643028601,0.9351,3030.0,3029.9,4.71306789]
[1763643028773,1.0461,3030.0,3029.9,0.001]
[1763643028973,1.0461,3030.0,3029.9,4.71306789]
[1763643030510,1.0461,3030.0,3029.9,0.001]
[1763643030710,1.0461,3030.0,3029.9,4.71306789]
[1763643030995,1.0461,3030.0,3029.9,0.001]
[1763643031393,4.34643003,3030.0,3029.9,0.001]
[1763643031590,1.0461,3030.0,3029.9,0.001]
[1763643033311,0.111,3030.4,3029.9,0.3311486]
[1763643033506,0.4884,3030.3,3029.9,0.3311486]
[1763643034306,0.4884,3030.3,3029.9,0.001]
[1763643034508,0.4894,3030.0,3029.9,0.001]
[1763643035010,1.0888,3030.0,3029.9,0.001]
[1763643035380,4.38913003,3030.0,3029.9,0.001]
[1763643037722,1.0888,3030.0,3029.9,0.001]
[1763643038007,4.38913003,3030.0,3029.9,0.001]
[1763643038813,1.0888,3030.0,3029.9,0.001]
[1763643039520,4.38913003,3030.0,3029.9,0.001]
[1763643039977,1.0888,3030.0,3029.9,0.001]
[1763643040385,4.38913003,3030.0,3029.9,0.001]
[1763643041215,4.43038415,3030.0,3029.9,0.001]
[1763643041730,14.29012012,3030.0,3028.9,0.99140943]
[1763643041891,0.6536,3029.9,3028.6,6.12686264]
[1763643042078,0.6536,3029.9,3028.7,0.90699264]
[1763643042281,0.4619,3029.8,3028.7,0.90699264]
[1763643042509,0.4578,3028.8,3028.7,0.90699264]
[1763643042924,0.4619,3029.6,3028.7,2.37001873]
[1763643043094,0.1917,3029.9,3028.7,2.37001873]
[1763643043095,0.6536,3029.9,3029.1,6.12686264]
[1763643043294,0.111,3029.7,3029.1,6.12686264]
[1763643043481,0.111,3029.7,3029.2,6.60240326]
[1763643043681,0.5729,3029.7,3029.2,6.60240326]
[1763643043983,0.5729,3029.7,3029.2,3.30120163]
[1763643044398,0.5729,3029.7,3029.2,6.60240326]
[1763643044799,0.5729,3029.7,3029.2,3.30120163]
[1763643045007,0.5729,3029.7,3029.2,6.60240326]
[1763643045886,0.111,3029.7,3029.2,7.72240712]
[1763643046514,0.5729,3029.7,3029.2,7.72240712]
[1763643046892,0.1917,3029.9,3029.3,0.405504]
[1763643047221,0.111,3029.8,3029.3,0.405504]
[1763643047522,0.1917,3029.9,3029.5,6.12686264]
[1763643048022,0.6536,3029.9,3029.6,3.30076577]
[1763643048320,0.6528,3029.9,3029.6,3.30076577]
[1763643048485,0.6528,3029.9,3029.5,12.72860875]
[1763643048687,0.4578,3029.6,3029.5,3.30087138]
[1763643050035,0.4578,3029.6,3029.4,3.30097941]
[1763643050315,0.4578,3029.5,3029.4,4.20797205]
[1763643050492,0.4578,3029.5,3029.4,0.90699264]
[1763643050921,0.9197,3029.5,3029.4,0.90699264]
[1763643051287,0.9197,3029.5,3029.2,0.90699264]
[1763643051493,0.4578,3029.3,3029.2,0.90699264]
[1763643052104,0.4578,3029.3,3029.2,4.20819427]
[1763643053902,0.9197,3029.3,3029.2,4.20819427]
[1763643054109,0.4578,3029.3,3029.2,4.20819427]
[1763643055009,0.111,3029.6,3029.3,0.405504]
[1763643055208,0.4619,3029.8,3029.3,0.405504]
[1763643055209,0.111,3029.8,3029.3,0.405504]
[1763643055416,0.111,3029.8,3029.3,0.42816436]
[1763643055623,0.111,3029.8,3029.3,2.23983179]
[1763643055822,0.111,3029.8,3029.3,2.21717143]
[1763643056022,0.5729,3029.8,3029.3,2.21717143]
[1763643056300,0.111,3029.8,3029.6,6.12686264]
[1763643057223,0.5729,3030.1,3029.6,6.12686264]
[1763643058932,0.5729,3030.1,3029.7,6.60131366]
[1763643060934,0.4578,3029.8,3029.5,4.61329299]
[1763643061452,0.4578,3029.8,3029.5,7.91416772]
[1763643062140,0.4578,3029.8,3029.5,11.60516772]
[1763643062446,0.4578,3029.8,3029.5,8.30429299]
[1763643062606,0.4578,3029.6,3029.5,8.30429299]
[1763643063009,0.9197,3029.6,3029.5,8.30429299]
[1763643063210,0.4619,3029.9,3029.5,11.60516772]
[1763643064135,0.4619,3029.9,3029.5,11.19966372]
[1763643066359,0.4619,3029.9,3029.5,7.89878899]
[1763643066360,0.4578,3029.6,3029.5,7.89878899]
[1763643066720,0.9197,3029.6,3029.5,7.89878899]
[1763643067049,0.4578,3029.6,3029.5,7.89878899]
[1763643068235,0.4897,3030.4,3029.6,0.405504]
[1763643068418,0.111,3030.3,3029.6,0.405504]
[1763643068616,0.111,3030.3,3029.5,13.18779989]
[1763643068617,0.4516,3029.7,3029.5,8.36068899]
[1763643068855,0.64195004,3030.3,3029.5,8.36068899]
[1763643068856,0.4516,3029.6,3029.5,4.59799264]